fUSD/lending_fUSD_20240627
["ID","MTS","AMOUNT","RATE_DAILY","PERIOD"]
[330491813,1719502236888,-220.18,0.00022877,2]
[330491814,1719502236898,-380.99116858,0.0002288,3]
[330491815,1719502236908,-2421.30702453,0.0002289,2]
[330491816,1719502236918,-340.0204518,0.0002289,2]
[330491817,1719502236929,-156.65031769,0.0002289,2]
[330491818,1719502236938,-4259.9361563,0.0002289,2]
[330491819,1719502236948,-185.14819565,0.0002289,4]
[330491820,1719502236957,-355.87882328,0.0002289,2]
[330491821,1719502236967,-201.39580508,0.0002289,2]
[330491822,1719502236977,-1000.0,0.0002289,2]
[330491823,1719502236987,-537.28157027,0.0002289,2]
[330491824,1719502236998,-10000.0,0.0002289,2]
[330491825,1719502237008,-444.6593,0.0002289,2]
[330491826,1719502237018,-2000.0,0.00022899,2]
[330491827,1719502237027,-365.47794762,0.00022899,2]
[330491828,1719502237036,-191.0,0.000229,5]
[330491829,1719502237045,-490.0,0.000229,5]
[330491830,1719502237055,-490.0,0.000229,5]
[330491831,1719502237064,-490.0,0.000229,5]
[330491832,1719502237076,-981.0,0.000229,5]
[330491833,1719502237085,-257.0,0.000229,2]
[330491834,1719502237094,-257.0,0.000229,2]
[330491835,1719502237103,-257.0,0.000229,2]
[330491836,1719502237113,-515.0,0.000229,2]
[330491837,1719502237123,-515.0,0.000229,2]
[330491838,1719502237132,-254.0,0.000229,2]
[330491839,1719502237142,-191.0,0.000229,5]
[330491840,1719502237152,-191.0,0.000229,5]
[330491841,1719502237162,-200.0,0.000229,5]
[330491842,1719502237172,-778.0,0.000229,11]
[330491843,1719502237181,-2185.0,0.000229,5]
[330491844,1719502237191,-318.182459,0.000229,2]
[330491845,1719502237200,-1001.54,0.00022935,2]
[330491846,1719502237210,-1001.54,0.00022935,2]
[330491847,1719502237219,-150.5,0.0002296,30]
[330491848,1719502237229,-150.5,0.0002297,30]
[330491849,1719502237239,-251.37924306,0.00022973,2]
[330491850,1719502237249,-151.0,0.00022974,7]
[330491851,1719502237258,-167.72788,0.00022974,7]
[330491852,1719502237268,-151.0,0.00022974,7]
[330491853,1719502237278,-151.0,0.00022974,7]
[330491854,1719502237288,-151.0,0.00022974,7]
[330491855,1719502237298,-151.0,0.00022974,7]
[330491856,1719502237308,-578.010107,0.00022974,7]
[330491857,1719502237317,-578.010107,0.00022974,7]
[330491858,1719502237328,-5819.020234,0.00022974,2]
[330491859,1719502237338,-4612.8727103,0.00022974,2]
[330491860,1719502237349,-15823.5745223,0.00022974,2]
[330491861,1719502237360,-12543.7156356,0.00022974,2]
[330491862,1719502237370,-207.2793762,0.00022974,2]
[330491863,1719502237381,-207.2793762,0.00022974,2]
[330491864,1719502237391,-2746.2896038,0.00022974,2]
[330491865,1719502237401,-2178.0917547,0.00022974,2]
[330491866,1719502237411,-13366.70626084,0.00022974,2]
[330491889,1719502240899,-156.5393225,0.0002186,2]
[330491890,1719502240909,-156.5393225,0.0002186,2]
[330491891,1719502240920,-156.5393225,0.0002186,2]
[330491892,1719502240931,-156.5393225,0.0002186,2]
[330491893,1719502240941,-156.5393225,0.0002186,2]
[330491894,1719502240951,-156.5393225,0.0002186,2]
[330491895,1719502240961,-156.5393225,0.0002186,2]
[330491896,1719502240971,-156.5393225,0.0002186,2]
[330491897,1719502240981,-156.5393225,0.0002186,2]
[330491898,1719502240991,-156.5393225,0.0002186,2]
[330491899,1719502241000,-156.5393225,0.0002186,2]
[330491900,1719502241010,-156.5393225,0.0002186,2]
[330491901,1719502241021,-156.5393225,0.0002186,2]
[330491902,1719502241032,-156.5393225,0.0002186,2]
[330491903,1719502241042,-156.5393225,0.0002186,2]
[330491904,1719502241052,-156.5393225,0.0002186,2]
[330491905,1719502241062,-156.5393225,0.0002186,2]
[330491906,1719502241071,-156.5393225,0.0002186,2]
[330491907,1719502241086,-156.5393225,0.0002186,2]
[330491908,1719502241096,-156.5393225,0.0002186,2]
[330491909,1719502241106,-156.5393225,0.0002186,2]
[330491910,1719502241115,-156.5393225,0.0002186,2]
[330491911,1719502241124,-13099.67400228,0.00022974,2]
[330491912,1719502241136,-2292.68713758,0.00022974,2]
[330491913,1719502241147,-38276.78222379,0.00022974,2]
[330491914,1719502241159,-3398.02401907,0.00022974,2]
[330491915,1719502241170,-692.51,0.00022974,2]
[330491916,1719502241182,-1291.06,0.00022974,2]
[330491917,1719502241193,-4415.52593606,0.00022974,2]
[330491918,1719502241204,-1568.17733148,0.00022974,2]
[330491919,1719502241217,-71699.6263039,0.00022974,2]
[330491920,1719502241227,-119045.4408257,0.00022974,2]
[330491921,1719502241236,-1303.1895149,0.00022974,2]
[330491922,1719502241245,-1033.564098,0.00022974,2]
[330491923,1719502241255,-1034.4940433,0.00022974,2]
[330491924,1719502241264,-820.8941743,0.00022974,2]
[330491925,1719502241274,-199.41,0.0002298,30]
[330491926,1719502241283,-1541.896,0.0002298,3]
[330491927,1719502241293,-216.78698398,0.0002298,3]
[330491928,1719502241302,-209.58920091,0.00022988,2]
[330491929,1719502241312,-217.0,0.00022989,2]
[330491930,1719502241321,-217.0,0.00022989,2]
[330491931,1719502241332,-217.0,0.00022989,2]
[330491932,1719502241341,-217.0,0.00022989,2]
[330491933,1719502241350,-1000.0,0.00022989,2]
[330491934,1719502241359,-1000.0,0.00022989,2]
[330491935,1719502241369,-2000.0,0.00022989,2]
[330491936,1719502241378,-2000.0,0.00022989,2]
[330491937,1719502241388,-151.0,0.00022989,2]
[330491938,1719502241397,-150.0,0.00022989,2]
[330491939,1719502241408,-32962.38429852,0.0002299,7]
[330491940,1719502241418,-1850.78911386,0.0002299,5]
[330491941,1719502241428,-400231.77490275,0.0002299,5]
[330491942,1719502241440,-320.7422724,0.0002299,5]
[330491956,1719502241694,-156.5393225,0.0002186,2]
[330491958,1719502241705,-882.56094864,0.0002299,5]
[330491959,1719502241717,-408807.41642425,0.0002299,5]
[330491960,1719502241728,-11135.60707275,0.0002299,5]
[330491961,1719502241740,-39280.72455278,0.0002299,5]
[330491962,1719502241753,-2024.11950155,0.0002299,5]
[330491964,1719502241765,-9038.4895697,0.0002299,5]
[330491965,1719502241777,-296.75,0.0002299,5]
[330491966,1719502241788,-1130.54686907,0.0002299,5]
[330491967,1719502242886,-156.5393225,0.0002186,2]
[330491968,1719502242896,-156.5393225,0.0002186,2]
[330491969,1719502242906,-156.5393225,0.0002186,2]
[330491970,1719502242916,-1146.45957175,0.0002299,5]
[330491971,1719502242928,-751.980007,0.0002299,5]
[330491972,1719502242939,-930.0,0.0002299,5]
[330491973,1719502242951,-22820.80713084,0.0002299,5]
[330491974,1719502242964,-5466.90328584,0.0002299,5]
[330491975,1719502242975,-1347.10578871,0.0002299,5]
[330491976,1719502242988,-5226.43347639,0.0002299,5]
[330491977,1719502242999,-625.19152182,0.0002299,5]
[330491978,1719502243011,-664.35000011,0.0002299,5]
[330491979,1719502243023,-32071.09744606,0.0002299,5]
[330491980,1719502243034,-692.43249975,0.0002299,5]
[330491981,1719502243046,-500.0,0.0002299,5]
[330491982,1719502243057,-2534062.31437736,0.0002299,5]
[330491986,1719502244369,-156.5393225,0.0002186,2]
[330491987,1719502244379,-156.5393225,0.0002186,2]
[330491988,1719502244388,-156.5393225,0.0002186,2]
[330491989,1719502244398,-156.5393225,0.0002186,2]
[330491990,1719502244408,-156.5393225,0.0002186,2]
[330491991,1719502244418,-156.5393225,0.0002186,2]
[330491992,1719502244428,-60.764065,0.0002186,2]
[330491993,1719502244440,-95.7752575,0.0002186,2]
[330491994,1719502244450,-156.5393225,0.0002186,2]
[330491995,1719502244459,-156.5393225,0.0002186,2]
[330491996,1719502244470,-156.5393225,0.0002186,2]
[330491997,1719502244480,-209.58920091,0.00022554,2]
[330491998,1719502244490,-1296.03070187,0.00022554,2]
[330491999,1719502244500,-2772956.70585646,0.0002299,5]
[330492000,1719502244512,-18283.51431937,0.0002299,5]
[330492001,1719502244526,-2831.21153585,0.0002299,5]
[330492002,1719502244539,-256.98780986,0.0002299,5]
[330492003,1719502244552,-22156.93700891,0.0002299,5]
[330492004,1719502244565,-701.33067573,0.0002299,5]
[330492005,1719502244578,-378.703701,0.0002299,5]
[330492006,1719502244593,-3865.81,0.0002299,5]
[330492007,1719502244604,-508.1055248,0.0002299,5]
[330492008,1719502244616,-10702.70300256,0.0002299,5]
[330492009,1719502244629,-21553.9592446,0.0002299,5]
[330492010,1719502244641,-15611.128,0.0002299,5]
[330492011,1719502244653,-697.39124285,0.0002299,5]
[330492012,1719502244666,-122000.09227331,0.0002299,5]
[330492038,1719502247284,-839.57267957,0.00021675,2]
[330492039,1719502247296,-537.0299754,0.00021675,2]
[330492040,1719502247306,-156.5393225,0.0002186,2]
[330492041,1719502247316,-201.35143862,0.00022988,2]
[330492042,1719502247328,-10.34640836,0.00022988,2]
[330492043,1719502247340,-494.51298,0.00022989,2]
[330492044,1719502247350,-40227.45777264,0.0002299,5]
[330492045,1719502247364,-1335.3493425,0.0002299,5]
[330492046,1719502248689,-831.51467711,0.0002299,5]
[330492047,1719502248701,-516.21750002,0.0002299,5]
[330492048,1719502248712,-285.044766,0.0002299,5]
[330492049,1719502248723,-547.84176427,0.0002299,5]
[330492050,1719502248735,-24744.4,0.0002299,5]
[330492051,1719502248748,-3332.49280195,0.0002299,5]
[330492052,1719502248760,-1853.9365,0.0002299,5]
[330492053,1719502248771,-500.0,0.0002299,5]
[330492054,1719502248782,-1197.39698254,0.0002299,5]
[330492055,1719502248794,-642.52569257,0.0002299,5]
[330492056,1719502248805,-7326.92951588,0.0002299,5]
[330492057,1719502248816,-3946.5,0.0002299,5]
[330492058,1719502248827,-7265.7,0.0002299,5]
[330492059,1719502248838,-681.51930103,0.0002299,5]
[330492060,1719502248850,-719.95798759,0.0002299,5]
[330492061,1719502427110,4510.18713905,0.00026,120]
[330492062,1719502512905,1383.89379491,0.0001,2]
[330492065,1719502716496,150.5,0.0001499,30]
[330492066,1719502717395,150.5,0.0001498,30]
[330492067,1719502717549,150.5,0.0001497,30]
[330492082,1719503110899,200.0,0.00025,60]
[330492129,1719503307533,990.0,0.00025,60]
[330492153,1719503432660,-288.84002822,0.000125,2]
[330492154,1719503432669,-71.8399717,0.00013999,2]
[330492155,1719503432684,-228.1600283,0.00013999,2]
[330492156,1719503432694,-698.2861717,0.00014,2]
[330492157,1719503432706,-2000.0,0.00014,2]
[330492158,1719503432749,-659.47,0.00014,2]
[330492174,1719503438314,-614.60712979,0.00014,2]
[330492175,1719503438327,-309.29473342,0.00014,2]
[330492176,1719503438339,-30740.5,0.00014,2]
[330492177,1719503438351,-5455.43200001,0.00014,2]
[330492178,1719503438429,-61553.46377156,0.00014,2]
[330492179,1719503438546,-1007.01572155,0.00014,2]
[330492184,1719503440620,-260.0,0.00014,2]
[330492185,1719503440687,-1780.95012414,0.00014,2]
[330492186,1719503440700,-1000.70091719,0.00014,2]
[330492187,1719503440713,-6784.01436498,0.00014,2]
[330492188,1719503440744,-339.44288328,0.00014,2]
[330492189,1719503440755,-1299.90272656,0.00014,2]
[330492190,1719503440767,-2015.14604493,0.00014,2]
[330492191,1719503440779,-960.42500044,0.00014,2]
[330492230,1719503443563,-6173.0,0.00014,2]
[330492231,1719503443591,-24649.67573574,0.00014,2]
[330492232,1719503443608,-302.46401112,0.00014,2]
[330492233,1719503443620,-64748.00000014,0.00014,2]
[330492262,1719503446446,-906.668401,0.00014,2]
[330492264,1719503446462,-11651.21138074,0.00014,2]
[330492265,1719503446500,-1709.59311675,0.00014,2]
[330492266,1719503446562,-538.4355534,0.00014,2]
[330492267,1719503446680,-1741.6135,0.00014,2]
[330492268,1719503446854,-2547.92756546,0.00014,2]
[330492349,1719504631541,-297.04785907,0.000139,2]
[330492350,1719504631552,-142.47784093,0.000139,2]
[330492351,1719504631562,-172.28575094,0.000139,2]
[330492352,1719504631573,-4232.05561479,0.000139,2]
[330492353,1719504631583,-152.3909464,0.000139,2]
[330492354,1719504631593,-4485.88276441,0.000139,2]
[330492355,1719504631604,-1849.85936052,0.000139,2]
[330492356,1719504631615,-2189.43119808,0.000139,2]
[330492357,1719504631766,-2187.93999304,0.000139,2]
[330492358,1719504631777,-12995.0,0.000139,2]
[330492359,1719504631827,-800.07111468,0.000139,2]
[330492360,1719504631840,-12191.51498028,0.000139,2]
[330492369,1719504637506,-347.93,0.000139,2]
[330492370,1719504637636,-267.4029094,0.000139,2]
[330492371,1719504637691,-298.0119726,0.000139,2]
[330492372,1719504637704,-368.4034386,0.000139,2]
[330492373,1719504637720,-781.88578096,0.000139,2]
[330492374,1719504637732,-769.22313,0.000139,2]
[330492375,1719504637745,-3804.36369245,0.000139,2]
[330492376,1719504637759,-6663.07966498,0.000139,2]
[330492377,1719504637769,-343.83059718,0.000139,2]
[330492378,1719504637779,-451.73086549,0.00013989,2]
[330492379,1719504637788,-6751.7725865,0.00014,2]
[330492380,1719504637805,-570.18901416,0.00014,2]
[330492382,1719504637826,-31379.86762403,0.00014,2]
[330492384,1719504637838,-780.33589964,0.00014,2]
[330492385,1719504637850,-384.59479513,0.00014,2]
[330492401,1719504639564,-517.3092,0.00014,2]
[330492402,1719504639715,-2692.54771284,0.00014,2]
[330492403,1719504639727,-716.8094612,0.00014,2]
[330492404,1719504639777,-411.10322206,0.00014,2]
[330492501,1719504642776,-1243.9391314,0.00014,2]
[330492502,1719504642799,-140463.63873579,0.00014,2]
[330492503,1719504642811,-1308.30798617,0.00014,2]
[330492504,1719504642833,-453.8567141,0.00014,2]
[330492505,1719504642844,-8450.7127794,0.00014,2]
[330492506,1719504642863,-382.12258582,0.00014,2]
[330492507,1719504642875,-384.34999965,0.00014,2]
[330492508,1719504642886,-745.13919809,0.00014,2]
[330492509,1719504642916,-5804.77917735,0.00014,2]
[330492510,1719504642927,-296.85999998,0.00014,2]
[330492522,1719504646083,-664.85868071,0.00014,2]
[330492524,1719504646109,-3399.39625553,0.00014,2]
[330492525,1719504646121,-3219.0,0.00014,2]
[330492526,1719504646132,-15792.50828716,0.00014,2]
[330492527,1719504646144,-1692.20876631,0.00014,2]
[330492528,1719504646155,-724.52419805,0.00014,2]
[330492529,1719504646167,-552.44885768,0.00014,2]
[330492530,1719504646178,-2140.314,0.00014,2]
[330492531,1719504646189,-682.94,0.00014,2]
[330492532,1719504646208,-617.44,0.00014,2]
[330492533,1719504646221,-1470.7035555,0.00014,2]
[330492534,1719504646233,-4194.7130299,0.00014,2]
[330492535,1719504646244,-5234.8,0.00014,2]
[330492536,1719504646255,-1042.51679166,0.00014,2]
[330492537,1719504646301,-281.0,0.00014,2]
[330492538,1719504646317,-11582.50964721,0.00014,2]
[330492539,1719504646328,-5795.19038756,0.00014,2]
[330492540,1719504646339,-622527.31975559,0.00014,2]
[330492541,1719504646360,-2207.1800953,0.00014,2]
[330492542,1719504646371,-2012.74517923,0.00014,2]
[330492544,1719504866185,-8738.0028,0.000138,2]
[330492545,1719504866207,-253.12656111,0.000138,2]
[330492546,1719504866230,-412.09415,0.0001386,2]
[330492547,1719504866251,-171.25042834,0.000139,2]
[330492548,1719504866278,-257.22222615,0.0001393,2]
[330492549,1719504866300,-50000.0,0.00013999,2]
[330492550,1719504866324,-150.0,0.00013999,2]
[330492551,1719504866350,-136235.65307636,0.00014,2]
[330492552,1719504917216,308.35250438,0.00025,60]
[330492553,1719504946569,-6668.4304,0.000144,2]
[330492554,1719504946595,-7302.34686428,0.000145,2]
[330492555,1719504946618,-152.3909464,0.00014799,2]
[330492556,1719504946640,-184.58416563,0.00014849,2]
[330492557,1719504946662,-89381.89838173,0.0001485,2]
[330492562,1719505692527,-3000.0,0.00013128,2]
[330492563,1719505749424,5382.20010444,0.00011098,2]
[330492566,1719505797181,219.28826757,0.00011098,2]
[330492567,1719505804962,155.0,0.00011098,2]
[330492568,1719505806581,486.04600646,0.00011098,2]
[330492569,1719505806609,10000.0,0.00011098,2]
[330492570,1719505806640,9824.27250254,0.00011098,2]
[330492571,1719505809669,175.72749746,0.00011098,2]
[330492572,1719505809694,5.3347873,0.00011098,2]
[330492573,1719505810678,411.43689115,0.00011098,2]
[330492574,1719505813988,1366.16096392,0.00011098,2]
[330492575,1719505814019,155.0,0.00011098,2]
[330492576,1719505815251,7548.60263927,0.00011098,2]
[330492577,1719505815884,263.38548045,0.00011098,2]
[330492578,1719505823330,250.07923791,0.00011098,2]
[330492579,1719505823357,40.35306343,0.00011098,2]
[330492580,1719505830805,263.38548045,0.00011098,2]
[330492586,1719505831781,-253.12656111,0.00013128,2]
[330492587,1719505831792,-690.20000005,0.00013128,2]
[330492588,1719505831814,-2163.19558103,0.00013128,2]
[330492589,1719505831824,-209.99775219,0.00013999,2]
[330492590,1719505831834,-1263.08088063,0.00013999,2]
[330492591,1719505831844,-1069.94736295,0.00013999,2]
[330492592,1719505831854,-50000.0,0.00014099,2]
[330492593,1719505831863,-735.56299996,0.00014293,2]
[330492594,1719505831874,-155.09203532,0.00014393,2]
[330492595,1719505831884,-735.56299996,0.00014455,2]
[330492596,1719505831893,-156.32206566,0.00014499,2]
[330492597,1719505831903,-456.02794989,0.00014526,2]
[330492598,1719505831918,-16228.05598139,0.00014554,2]
[330492599,1719505831960,-2564.27809117,0.00014554,2]
[330492600,1719505831972,-826.29867666,0.00014554,2]
[330492601,1719505831983,-266.34568794,0.00014554,2]
[330492602,1719505832026,-1800.0,0.00014554,2]
[330492603,1719505832038,-331.9629089,0.00014554,2]
[330492604,1719505832049,-833.79793316,0.00014554,2]
[330492605,1719505832061,-318.86689986,0.00014554,2]
[330492606,1719505832072,-18711.44816338,0.00014554,2]
[330492608,1719505832208,-0.88821833,0.00014554,2]
[330492609,1719505832219,-505.38615579,0.00014554,2]
[330492610,1719505832292,-641.43342479,0.00014554,2]
[330492624,1719505837816,-92162.39079932,0.00014554,2]
[330492625,1719505837920,-911.84705931,0.00014554,2]
[330492626,1719505837932,-155.07,0.00014626,2]
[330492627,1719505837942,-5158.43393805,0.0001465,2]
[330492628,1719505837952,-499.99,0.0001465,2]
[330492629,1719505837965,-155.07,0.00014753,2]
[330492630,1719505837976,-155.0,0.00014849,2]
[330492631,1719505837986,-199.9532721,0.00014849,2]
[330492632,1719505837995,-155.0,0.00014849,2]
[330492633,1719505838007,-297.37308138,0.00014849,2]
[330492634,1719505838018,-343.41179,0.0001485,2]
[330492635,1719505838028,-155.07,0.0001488,2]
[330492636,1719505838038,-206.07168017,0.00014899,2]
[330492637,1719505838048,-181.50037733,0.00014899,2]
[330492638,1719505838058,-164.4828336,0.000149,2]
[330492639,1719505838068,-233.85367932,0.000149,2]
[330492640,1719505838078,-250.0,0.00014904,2]
[330492641,1719505838088,-676.85,0.00014953,2]
[330492643,1719505838098,-150.0,0.00014986,2]
[330492644,1719505838108,-684.44148417,0.00014999,2]
[330492645,1719505838117,-283.65931736,0.00014999,2]
[330492646,1719505838127,-684.44148417,0.00014999,2]
[330492648,1719505838136,-226.97665617,0.00014999,2]
[330492649,1719505838146,-78820.53519835,0.00015,2]
[330492650,1719505838158,-3235.52657151,0.00015,2]
[330492651,1719505838170,-325.16500787,0.00015,2]
[330492652,1719505839782,-2103.02936187,0.00015,2]
[330492653,1719505839807,-1861.97277575,0.00015,2]
[330492654,1719505839912,-44651.02147046,0.00015,2]
[330492655,1719505840010,-644.52416398,0.00015,2]
[330492656,1719505840023,-375.745,0.00015,2]
[330492657,1719505840035,-6787.29724564,0.00015,2]
[330492658,1719505840047,-301.21,0.00015,2]
[330492659,1719505840063,-385.66261705,0.00015,2]
[330492660,1719505840191,-383.06400001,0.00015,2]
[330492728,1719505842989,-394.32513033,0.00015,2]
[330492729,1719505843001,-18594.33482018,0.00015,2]
[330492730,1719505843012,-313.19811048,0.00015,2]
[330492731,1719505843052,-342000.0,0.00015,2]
[330492732,1719505843126,-367.69336575,0.00015,2]
[330492733,1719505843193,-32836.52503662,0.00015,2]
[330492734,1719505843205,-1070.68609688,0.00015,2]
[330492736,1719505843218,-346.11167018,0.00015,2]
[330492738,1719505843229,-725.77704884,0.00015,2]
[330492739,1719505843241,-293.33957425,0.00015,2]
[330492749,1719505846858,-680.15365359,0.00013452,2]
[330492750,1719505846926,-4989.41324129,0.00013452,2]
[330492751,1719505847033,-819.3428148,0.00013452,2]
[330492752,1719505847045,-5743.6812203,0.00013452,2]
[330492753,1719505847054,-15791.28324028,0.00015,2]
[330492754,1719505847067,-6248.55757461,0.00015,2]
[330492755,1719505847105,-24774.9825758,0.00015,2]
[330492756,1719505893925,155.0,0.00011098,2]
[330492757,1719505898682,1366.16096392,0.00011098,2]
[330492758,1719505958707,166.20928735,0.00011098,2]
[330492759,1719505960677,254.0486757,0.00011098,2]
[330492760,1719505974243,7548.60263927,0.00011098,2]
[330492761,1719505977578,181.06228476,0.00011098,2]
[330492762,1719505978295,25.17760512,0.00011098,2]
[330492763,1719505978318,265.25469622,0.00011098,2]
[330492764,1719505995522,200.0,0.00025112,120]
[330492765,1719505996051,203.925064,0.00025999,120]
[330492766,1719505997703,1366.16096392,0.00011098,2]
[330492767,1719505999361,1000.0,0.00025722,120]
[330492768,1719506004483,7548.60263927,0.00011098,2]
[330492769,1719506005943,196.6281065,0.00011098,2]
[330492770,1719506008304,290.43230134,0.00011098,2]
[330492771,1719506019825,263.38548045,0.00011098,2]
[330492772,1719506027687,69.5358123,0.00011098,2]
[330492773,1719506027712,1296.62515162,0.00011098,2]
[330492774,1719506028884,263.38548045,0.00011098,2]
[330492775,1719506094307,290.43230134,0.00011098,2]
[330492776,1719506094618,180.73620269,0.00011098,2]
[330492777,1719506097293,2373.11184045,0.00011098,2]
[330492778,1719506106066,646.05283233,0.00011098,2]
[330492779,1719506108306,290.43230134,0.00011098,2]
[330492780,1719506126733,1366.16096392,0.00011098,2]
[330492781,1719506128303,3293.06292586,0.00011098,2]
[330492782,1719506128326,4249.02844393,0.00011098,2]
[330492783,1719506137792,173.54,0.00011092,2]
[330492785,1719506145461,684.44148417,0.00011098,2]
[330492789,1719506213730,158.96787577,0.00011098,2]
[330492790,1719506228748,155.0,0.00011098,2]
[330492791,1719506229331,226.92063037,0.00011098,2]
[330492792,1719506229776,1366.16096392,0.00011098,2]
[330492793,1719506234157,1340.45210192,0.00011098,2]
[330492794,1719506236816,210.05763689,0.0001,2]
[330492795,1719506237317,428.71281816,0.00011098,2]
[330492796,1719506238833,155.37616863,0.00011098,2]
[330492797,1719506241574,617.3692497,0.00011097,2]
[330492799,1719506259755,233.97262654,0.00011098,2]
[330492800,1719506259778,1132.18833738,0.00011098,2]
[330492801,1719506260468,225.08047332,0.00011098,2]
[330492802,1719506268338,327.92162053,0.00011098,2]
[330492803,1719506269783,650.83910401,0.00011098,2]
[330492804,1719506271819,202.05047868,0.00011098,2]
[330492805,1719506273568,271.85724688,0.00011098,2]
[330492807,1719506276134,250.49948681,0.00011098,2]
[330492808,1719506279650,887.81042537,0.00011098,2]
[330492811,1719506301072,944.47198158,0.00011098,2]
[330492812,1719506308759,2004.4104095,0.00011098,2]
[330492814,1719506323206,336.19305709,0.00011098,2]
[330492815,1719506342841,1251.56223789,0.00011098,2]
[330492816,1719506361895,283.65931736,0.00011098,2]
[330492820,1719506427966,1231.4558236,0.00011098,2]
[330492821,1719506427989,4150.74428084,0.00011098,2]
[330492822,1719506432286,684.44148417,0.00011098,2]
[330492826,1719506519813,155.0,0.00011098,2]
[330492830,1719506587427,660.4164294,0.00011098,2]
[330492831,1719506596365,155.11752657,0.00011098,2]
[330492832,1719506619771,544.32198698,0.00011098,2]
[330492833,1719506652615,2373.26731209,0.00011098,2]
[330492834,1719506767384,684.44148417,0.00011098,2]
[330492835,1719506769414,283.05135642,0.00011098,2]
[330492836,1719506804719,-9571.09160299,0.00011199,2]
[330492837,1719506804743,-157.83720861,0.00011199,2]
[330492838,1719506804768,-271.0711884,0.00011199,2]
[330492839,1719506805280,-10000.0,0.00011199,2]
[330492840,1719506806815,-9340.03281258,0.00011199,2]
[330492841,1719506806840,-659.96718742,0.00011199,2]
[330492842,1719506808124,-10000.0,0.00011199,2]
[330492843,1719506810108,-8951.13681356,0.00011199,2]
[330492847,1719506838088,535.59904363,0.00011199,2]
[330492848,1719506839656,513.26414281,0.00011199,2]
[330492849,1719506839678,431.20783877,0.00011199,2]
[330492850,1719506843944,264.2801,0.00011096,2]
[330492851,1719506855677,180.42,0.00010589,2]
[330492852,1719506882284,300.0,0.00011199,2]
[330492853,1719506939846,684.44148417,0.00011199,2]
[330492881,1719506964479,3944.35371821,0.00011199,2]
[330492882,1719507001659,300.0,0.00011199,2]
[330492883,1719507002625,150.0,0.00011199,2]
[330492884,1719507002792,150.0,0.00011199,2]
[330492885,1719507003004,150.0,0.00011199,2]
[330492886,1719507004384,150.0,0.00011199,2]
[330492887,1719507004497,150.0,0.00011199,2]
[330492888,1719507004693,259.6289157,0.00011199,2]
[330492906,1719507032148,-3395.83904158,0.000112,2]
[330492907,1719507032160,-1501.43496136,0.000112,2]
[330492908,1719507032172,-1280.56006859,0.000112,2]
[330492912,1719507033071,-15551.41752282,0.000112,2]
[330492913,1719507033083,-530.0,0.000112,2]
[330492914,1719507033095,-11977.51308621,0.000112,2]
[330492915,1719507033107,-2034.51281324,0.000112,2]
[330492916,1719507033144,-4445.76318075,0.000112,2]
[330492917,1719507033156,-772.1,0.000112,2]
[330492918,1719507033171,-1684.86444504,0.000112,2]
[330492919,1719507033182,-9958.20726607,0.000112,2]
[330492920,1719507033194,-346.62736294,0.000112,2]
[330492921,1719507033204,-562.29935865,0.000112,2]
[330492922,1719507033216,-2703.71670388,0.000112,2]
[330492923,1719507033227,-2400.0,0.000112,2]
[330492924,1719507033291,-618.92831,0.000112,2]
[330492925,1719507033303,-380.82981456,0.000112,2]
[330492937,1719507038039,-6389.49405049,0.000112,2]
[330492938,1719507038096,-639.75,0.000112,2]
[330492939,1719507038192,-12929.52517846,0.000112,2]
[330492940,1719507038204,-1156.56072271,0.000112,2]
[330492941,1719507038213,-442.19,0.00011308,2]
[330492942,1719507038223,-2266.50196297,0.000118,2]
[330492943,1719507038233,-150.0,0.00012274,2]
[330492944,1719507038243,-206.07168017,0.00012302,2]
[330492945,1719507038252,-184.0,0.00012304,2]
[330492946,1719507038261,-180.42,0.00012354,2]